[Event "40th Cappelle Open 2024"]
[Site "Cappelle-la-Grande"]
[Date "2024.03.03"]
[Round "2.8"]
[White "Fedoryshyn, Ievgenii"]
[Black "Girel, Joseph"]
[Result "1-0"]
[ECO "C03"]
[WhiteElo "2256"]
[BlackElo "2486"]
[Annotator "TA"]
[PlyCount "105"]
[EventDate "2024.03.02"]
[EventType "swiss"]
[EventCountry "FRA"]
[SourceTitle "playchess.com"]
[Source "ChessBase"]
[SourceQuality "1"]
[TimeControl "40/5400+30:1800+30"]

{[%evp 21,105,0,-8,-10,0,-12,0,0,0,0,0,-31,-24,-39,-30,-29,-45,-47,-16,-16,-18,-15,0,-24,19,30,39,28,29,33,33,-325,-329,-341,-321,-441,-448,-730,-720,-1175,-235,-444,-254,-505,-462,-506,-492,-465,-458,-29979,0,0,0,0,92,0,0,0,0,0,25,22,19,19,331,83,314,296,1281,883,422,777,622,585,627,601,29974,29975,29972,29975,29974,29974,29986,29986,29986,29987]} 1. e4 {[%emt 0:00:02]} e6 {[%emt 0:01:42]} 2. d4 {[%emt 0:00:16]} d5 {[%emt 0:00:13]} 3. Nd2 {[%emt 0:00:11]} Be7 {[%emt 0:01:12]} 4. Ngf3 {[%emt 0:04:02]} Nf6 {[%emt 0:00:28]} 5. Bd3 {[%emt 0:00:12]} c5 {[%emt 0:00:43]} 6. exd5 {[%emt 0:04:33]} Qxd5 {[%emt 0:02:33]} 7. dxc5 {[%emt 0:08:10]} Qxc5 {[%emt 0:00:28]} 8. O-O {[%emt 0:01:10]} Nbd7 {[%emt 0:00:08]} 9. Qe2 {[%emt 0:03:02]} Qc7 {[%emt 0:01:02]} 10. Nb3 {[%emt 0:04:56]} O-O {[%emt 0:01:16]} 11. c3 {[%emt 0:02:03]} b6 {[%emt 0:02:23]} 12. Bg5 {[%emt 0:01:28]} Bb7 {[%emt 0:01:20]} 13. Rfe1 {[%emt 0:06:19]} Rfe8 {[%emt 0:05:38]} 14. Rad1 {[%emt 0:04:59]} a6 {[%emt 0:06:35]} 15. Bh4 {[%emt 0:09:05]} Bd6 {[%emt 0:04:13]} 16. Bg3 {[%emt 0:14:51]} Bxg3 {[%emt 0:01:44]} 17. hxg3 {[%emt 0:00:02]} e5 {[%emt 0:00:24]} 18. Bc2 {[%emt 0:04:12]} e4 {[%emt 0:03:16]} 19. Nfd4 {[%emt 0:02:54]} Ne5 {[%emt 0:03:48]} (19... e3 {feels hotter.} 20. Nf5 exf2+ 21. Qxf2 g6) 20. Nd2 {[%emt 0:01:49]} Neg4 {[%emt 0:03:27]} 21. Nf1 {[%emt 0:01:09]} Qc5 {[%emt 0:02:32]} 22. Bb3 {[%emt 0:04:05]} Qh5 {[%emt 0:02:06]} 23. Nc2 {[%emt 0:00:06]} a5 {[%emt 0:06:12]} 24. Bc4 {[%emt 0:01:32]} Re5 {[%emt 0:08:32]} 25. Nce3 {[%emt 0:07:57]} b5 {[%emt 0:03:43]} 26. Nxg4 $4 {[%emt 0:01:00][%mdl 8192]} (26. Bb3 $1 $14 {is the one way to stay ahead.}) 26... Nxg4 $19 {[%emt 0:02:55]} 27. Bb3 {[%emt 0:08:29] [#]} a4 $1 {[%emt 0:00:35]} (27... Rf5 28. f3 Nf6 (28... exf3 29. Qe8+ Rxe8 30. Rxe8#) 29. Qd2 $14) 28. Rd7 {[%emt 0:00:05]} axb3 {[%emt 0:01:06]} 29. Rxb7 {[%emt 0:00:01]} (29. axb3 $142 Bc6 30. Rd6) 29... bxa2 $19 {[%emt 0:02:28]} 30. b4 {[%emt 0:00:48]} Nf6 $2 {[%emt 0:26:11]} (30... a1=B 31. Rxa1 Rd8 32. Ra5 $14) (30... g6 31. Rb8+ Rxb8 32. Qxa2 Qh6) 31. Qb2 $2 {[%emt 0:01:14]} (31. Qxh5 {only move.} Rxh5 32. Ra1) 31... Ree8 {[%emt 0:01:35]} (31... h6 $142 32. c4 e3 (32... bxc4 $2 33. Rc7 $19) 33. fxe3 bxc4) 32. Ne3 $2 {[%emt 0:00:57]} (32. Ra1 e3 (32... Qd5 $2 33. Rc7 $19) 33. fxe3 (33. Nxe3 $2 Rxe3 34. Qb3 Ng4 $19)) 32... Red8 {[%emt 0:02:21]} 33. Ra1 {[%emt 0:00:13]} Ng4 {[%emt 0:00:29]} 34. Nxg4 {[%emt 0:01:44]} Qxg4 {[%emt 0:00:02]} 35. Rxb5 {[%emt 0:02:17]} (35. Qc2 $19 Qe6 36. Rxb5) 35... Ra6 $2 {[%emt 0:03:08]} (35... Rd1+ {mates} 36. Rxd1 Qxd1+ 37. Kh2 a1=Q (37... a1=B 38. Qa3 $17) 38. Qxa1 Qxa1 39. Re5 Qxc3 40. Rxe4 Qf6 41. Re1 Qxf2 (41... Qh6+ $2 42. Kg1 $19) 42. Re5 Qf6 43. Re4 Qh6+ 44. Rh4 Qc1 45. Re4 f5 (45... Qh6+ 46. Rh4 Qc1 47. Re4 f5 48. Rd4 Ra1 49. Rd8+ Kf7 50. Rd7+ Ke8 51. Rd8+ Kxd8 52. g4 f4 53. Kh3 Qh1#) 46. Rd4 Ra1 (46... Qh6+ 47. Rh4 Qc1 48. Rd4 Ra1 49. Rd8+ Kf7 50. Rd7+ Ke8 51. Rd8+ Kxd8 52. g4 f4 53. Kh3 Qh1#) 47. Rd8+ Kf7 48. Rd7+ Ke6 49. Rd6+ Kxd6 50. g4 f4 51. Kh3 Qh1#) 36. Qd2 $1 $11 {[%emt 0:00:46]} Qc8 {[%emt 0:01:27]} (36... Rxd2 37. Rb8+) 37. Rd5 {[%emt 0:01:00]} Re8 {[%emt 0:00:21] [#]} (37... Rxd5 $11 38. Qxd5 Qa8) 38. Rxa2 {[%emt 0:01:05]} (38. Ra5 $1 $16) 38... Rxa2 $11 {[%emt 0:00:16]} (38... e3 $6 39. fxe3 Rxa2 40. Qxa2 Qxc3 41. Qd2 Qxd2 42. Rxd2 $16) 39. Qxa2 {[%emt 0:00:01]} Qxc3 {[%emt 0:00:14]} 40. Qd2 {[%emt 0:01:11]} Qc7 {[%emt 0:01:11]} 41. Rd7 {[%emt 0:14:53]} (41. b5 {simplifies} Qb6 42. Qd4 Qxd4 43. Rxd4 Kf8 44. g4) 41... Qe5 {[%emt 0:11:24]} ({Much worse is} 41... e3 $6 42. fxe3 Qe5 (42... Qxg3 43. b5 $16) 43. Qd4 Qxd4 (43... Qxg3 $2 {too greedy.} 44. Rd8 $18) 44. Rxd4 $16 (44. exd4 Kf8 $18)) 42. Qa2 {[%emt 0:06:35]} (42. Rd8 {simplifies} g6 43. Rxe8+ Qxe8 44. Qd4) 42... e3 $2 {[%emt 0:12:23][%mdl 8192]} (42... Rf8 $11 {and Black is okay.}) 43. Qxf7+ $18 {[%emt 0:02:17]} Kh8 {[%emt 0:00:01]} 44. f4 {[%emt 0:04:08]} e2 $2 {[%emt 0:01:51]} (44... Qa1+ 45. Kh2 Rg8) 45. fxe5 $18 {[%emt 0:00:01]} e1=Q+ {[%emt 0:00:06]} 46. Kh2 {[%emt 0:00:07]} Qxe5 {[%emt 0:00:02]} 47. b5 {[%emt 0:01:09]} Rg8 {[%emt 0:01:19]} 48. b6 {[%emt 0:00:35]} Qe3 {[%emt 0:00:09]} 49. Rd6 {[%emt 0:00:40]} Qc5 {[%emt 0:02:31]} 50. Re6 {[%emt 0:00:28]} Qb5 {[%emt 0:03:38]} 51. b7 {[%emt 0:00:14]} h6 {[%emt 0:00:05]} 52. Re7 {[%emt 0:01:17]} Kh7 {[%emt 0:01:36]} 53. Rc7 {[%emt 0:00:19]} 1-0

[Event "40th Cappelle Open 2024"]
[Site "Cappelle-la-Grande"]
[Date "2024.03.03"]
[Round "2.9"]
[White "Pourquet, Matthieu"]
[Black "Vlachos, Anatole"]
[Result "0-1"]
[ECO "E05"]
[WhiteElo "2233"]
[BlackElo "2479"]
[Annotator "TA"]
[PlyCount "106"]
[EventDate "2024.03.02"]
[EventType "swiss"]
[EventCountry "FRA"]
[SourceTitle "playchess.com"]
[Source "ChessBase"]
[SourceQuality "1"]
[TimeControl "40/5400+30:1800+30"]

{[%evp 24,106,-21,-29,-39,-18,5,19,27,0,0,0,4,0,0,0,0,-22,-33,-21,-14,-28,-6,-43,-41,-49,-35,-59,-59,-44,-42,-52,-54,-101,-46,-44,-44,-94,-96,-109,-88,-101,-60,-159,-154,-150,-162,-158,-151,-122,-135,-176,-186,-177,-176,-178,-158,-201,-204,-201,-226,-237,-225,-245,-247,-243,-229,-395,-385,-468,-436,-451,-385,-388,-386,-594,-597,-730,-704,-892,-830,-938,-914,-785,-747]} 1. d4 {[%emt 0:00:07]} d5 {[%emt 0:00:04]} 2. c4 {[%emt 0:00:15]} e6 {[%emt 0:00:08]} 3. Nf3 {[%emt 0:01:06]} Nf6 {[%emt 0:00:06]} 4. g3 {[%emt 0:00:21]} Be7 {[%emt 0:00:11]} 5. Bg2 {[%emt 0:00:06]} O-O {[%emt 0:00:04]} 6. O-O {[%emt 0:00:50]} dxc4 {[%emt 0:00:03]} 7. Qc2 {[%emt 0:00:12]} a6 {[%emt 0:00:03]} 8. a4 {[%emt 0:00:16]} Bd7 {[%emt 0:00:04][%cal Bc8d7,Bd7c6,Bc6e4][%mdl 32]} 9. Qxc4 {[%emt 0:00:21]} Bc6 {[%emt 0:00:04]} 10. Nc3 {[%emt 0:02:53]} b5 {[%emt 0:00:13]} 11. Qd3 {[%emt 0:03:29]} b4 {[%emt 0:00:09]} 12. Nb1 {[%emt 0:00:30]} Be4 {[%emt 0:03:01]} 13. Qd1 {[%emt 0:10:37]} c5 {[%emt 0:00:51]} 14. dxc5 {[%emt 0:02:56]} Qxd1 {[%emt 0:07:08]} 15. Rxd1 {[%emt 0:00:06]} Nbd7 {[%emt 0:01:04] The position is equal.} 16. Bf4 {[%emt 0:03:19]} Nxc5 {[%emt 0:06:38]} 17. Nbd2 {[%emt 0:02:49] Prevents Nb3.} Bd5 {[%emt 0:01:17]} 18. Ne5 {[%emt 0:10:16]} Bxg2 {[%emt 0:05:59]} 19. Kxg2 {[%emt 0:00:38]} Nd5 {[%emt 0:00:04]} 20. Nec4 {[%emt 0:15:20]} Nxf4+ {[%emt 0:12:35]} 21. gxf4 {[%emt 0:00:05]} Rac8 {[%emt 0:00:19]} 22. Nb6 {[%emt 0:14:07] A dynamic duo of knights.} Rcd8 {[%emt 0:17:15]} 23. Ndc4 {[%emt 0:00:18]} f6 {[%emt 0:07:01]} 24. Kf1 {[%emt 0:03:24]} Kf7 {[%emt 0:01:18]} 25. e3 {[%emt 0:00:38]} Rxd1+ {[%emt 0:03:53]} 26. Rxd1 {[%emt 0:00:05]} Rd8 {[%emt 0:00:06] Wards off Nd6+} 27. Rc1 {[%emt 0:14:57]} Nb3 {[%emt 0:07:38]} 28. Rc2 {[%emt 0:00:30]} (28. Re1 $15 {feels stronger.}) 28... Ke8 {[%emt 0:01:20]} (28... Kg6 $17) 29. Ke2 $15 {[%emt 0:04:00]} Rb8 {[%emt 0:00:07]} 30. Nc8 {[%emt 0:03:30]} Rxc8 $17 {[%emt 0:04:07]} 31. Nd6+ {[%emt 0:00:04]} Bxd6 {[%emt 0:00:03]} 32. Rxc8+ {[%emt 0:00:03]} Ke7 {[%emt 0:01:49]} 33. Ra8 {[%emt 0:01:35]} (33. Rg8 $1 $15) 33... Nc5 {[%emt 0:00:11]} 34. Ra7+ {[%emt 0:00:05] [#]} Kf8 $1 {[%emt 0:00:34]} 35. h3 {[%emt 0:05:56]} Be7 {[%emt 0:00:28]} (35... Nxa4 $2 {too greedy.} 36. Rxa6 Bxf4 37. Rxa4 $18) 36. a5 {[%emt 0:00:14]} f5 {[%emt 0:01:53]} 37. f3 {[%emt 0:01:17]} Bd8 {[%emt 0:00:18]} 38. Ra8 {[%emt 0:00:52]} Ke7 {[%emt 0:00:01][%cal Oe7d7]} 39. Rc8 {[%emt 0:00:13]} Nb7 {[%emt 0:11:37]} 40. Rb8 {[%emt 0:00:25]} Nxa5 {[%emt 0:00:39] [#] ...Nc6 would now be deadly.} 41. Rxb4 {[%emt 0:02:07]} Kd6 {[%emt 0:03:39]} 42. Kd3 {[%emt 0:08:07]} Kc5 {[%emt 0:04:29]} 43. Rb8 {[%emt 0:09:33]} Nc6 {[%emt 0:00:06]} 44. Rb7 {[%emt 0:00:07]} Bf6 {[%emt 0:00:13] aiming for ...Nb4+.} 45. Kc2 $2 {[%emt 0:02:40]} (45. Ke2 {was called for.}) 45... Nb4+ $19 {[%emt 0:00:25]} 46. Kb3 {[%emt 0:01:14]} Nd5 {[%emt 0:01:11]} 47. Ka4 {[%emt 0:02:53]} Nxe3 {[%emt 0:00:07] Hoping for ...Nd5.} 48. b4+ {[%emt 0:00:31]} Kc6 {[%emt 0:00:15]} 49. Rb8 {[%emt 0:00:04]} (49. Ra7 {was forced.} Kb6 50. Rd7) 49... Nd5 {[%emt 0:00:55] Black is clearly winning.} 50. Ka5 {[%emt 0:00:21]} Bc3 {[%emt 0:00:29]} ({Not} 50... Nxf4 51. Kxa6 Bd4 (51... Nxh3 $2 52. b5+ Kc7 53. Re8 $19) 52. b5+ Kc7 53. Rh8 $19) 51. Kxa6 {[%emt 0:01:54]} Nxb4+ {[%emt 0:00:06]} 52. Ka7 {[%emt 0:00:05]} Bd4+ {[%emt 0:00:14]} 53. Ka8 {[%emt 0:00:04]} Nd5 {[%emt 0:00:06] Weighted Error Value: White=0.43/Black=0.07 (flawless) .  Mistake:       	White=5     	Black=1      Inaccurate:     	White=3     	Black=1      OK:         	White=9     	Black=17     Best:        	White=3     	Black=6      Strong:       	---       	Black=1} 0-1

[Event "40th Cappelle Open 2024"]
[Site "Cappelle-la-Grande"]
[Date "2024.03.03"]
[Round "2.10"]
[White "Velten, Paul"]
[Black "Maisuradze, Nino"]
[Result "1-0"]
[ECO "B31"]
[WhiteElo "2475"]
[BlackElo "2254"]
[Annotator "RC"]
[PlyCount "63"]
[EventDate "2024.03.02"]
[EventType "swiss"]
[EventCountry "FRA"]
[SourceTitle "playchess.com"]
[Source "ChessBase"]
[SourceQuality "1"]
[TimeControl "40/5400+30:1800+30"]

1. e4 {[%emt 0:00:14]} c5 {[%emt 0:00:06]} 2. Nf3 {[%emt 0:00:33]} Nc6 {[%emt 0:00:30]} 3. Bb5 {[%emt 0:00:53]} g6 {[%emt 0:00:28]} 4. O-O {[%emt 0:03:37]} Bg7 {[%emt 0:00:06]} 5. Bxc6 {[%emt 0:01:43]} bxc6 {[%emt 0:04:14]} 6. Re1 {[%emt 0:02:18]} Nh6 {[%emt 0:01:24]} 7. h3 {[%emt 0:04:58]} O-O {[%emt 0:00:22]} 8. d3 {[%emt 0:00:35]} f5 {[%emt 0:01:09]} 9. e5 {[%emt 0:01:22]} Nf7 {[%emt 0:00:16]} 10. Bf4 {[%emt 0:02:27]} d6 {[%emt 0:05:19]} 11. Nc3 {[%emt 0:16:55]} Rb8 {[%emt 0:02:56]} 12. Rb1 {[%emt 0:13:55]} Qc7 {[%emt 0:08:51]} 13. exd6 {[%emt 0:03:03]} exd6 {[%emt 0:00:07]} 14. Na4 {[%emt 0:00:37]} Qd8 {[%emt 0:15:51]} 15. Bh2 {[%emt 0:04:51]} g5 {[%emt 0:05:13]} 16. Nxc5 {[%emt 0:03:32]} g4 {[%emt 0:01:05]} 17. hxg4 {[%emt 0:00:35]} fxg4 {[%emt 0:00:05]} 18. Nd2 {[%emt 0:00:20]} Be5 {[%emt 0:27:39]} 19. Bxe5 {[%emt 0:06:22]} Nxe5 {[%emt 0:00:02]} 20. Nce4 {[%emt 0:01:15]} Qh4 {[%emt 0:04:13]} 21. Re3 {[%emt 0:01:34]} Be6 {[%emt 0:08:47]} 22. Qe1 {[%emt 0:03:33]} Bxa2 {[%emt 0:05:58]} 23. f4 {[%emt 0:03:16]} Qxe1+ {[%emt 0:00:39]} 24. Rbxe1 {[%emt 0:00:06]} Ng6 {[%emt 0:04:20]} 25. b3 {[%emt 0:00:15]} d5 {[%emt 0:00:17]} 26. Nc5 {[%emt 0:00:21]} d4 {[%emt 0:00:54]} 27. Re4 {[%emt 0:00:19]} Rxf4 {[%emt 0:01:47]} 28. Ra1 {[%emt 0:01:14]} Rb5 {[%emt 0:01:04]} 29. Ne6 {[%emt 0:00:59]} Rxe4 {[%emt 0:00:15]} 30. Nxe4 {[%emt 0:00:05]} Ra5 {[%emt 0:00:50]} 31. Nxd4 {[%emt 0:00:08]} Nf4 {[%emt 0:00:23]} 32. Nxc6 {[%emt 0:00:47]} 1-0

[Event "40th Cappelle Open 2024"]
[Site "Cappelle-la-Grande"]
[Date "2024.03.03"]
[Round "2.12"]
[White "Roshka, Yevgeniy"]
[Black "Degardin, Sylvain"]
[Result "1/2-1/2"]
[ECO "A64"]
[WhiteElo "2468"]
[BlackElo "2235"]
[Annotator "TA"]
[PlyCount "114"]
[EventDate "2024.03.02"]
[EventType "swiss"]
[EventCountry "FRA"]
[SourceTitle "playchess.com"]
[Source "ChessBase"]
[SourceQuality "1"]
[TimeControl "40/5400+30:1800+30"]

{[%evp 21,114,17,6,0,0,-20,-15,-14,-18,-37,-24,-18,-30,-33,-28,-108,-115,-99,-77,-118,-120,-112,-76,-86,-34,-72,-63,-65,-28,-52,0,0,0,0,0,-75,-116,-176,0,0,0,0,0,0,0,-360,-220,-520,-502,-579,-555,-915,-923,-983,-513,-509,-411,-505,-497,-507,-527,-524,-531,-560,-543,-630,-630,-734,-727,-2218,-3421,-1858,-1016,-29992,-979,-866,-252,-273,-222,-179,-61,-137,-44,-41,-23,-81,-8,-8,0,0,0,0,0,0,0]} 1. d4 {[%emt 0:01:00]} Nf6 {[%emt 0:00:11]} 2. c4 {[%emt 0:00:02]} g6 {[%emt 0:00:20]} 3. Nc3 {[%emt 0:00:04]} Bg7 {[%emt 0:00:17]} 4. Nf3 {[%emt 0:01:50]} d6 {[%emt 0:00:52]} 5. g3 {[%emt 0:01:21]} O-O {[%emt 0:01:04]} 6. Bg2 {[%emt 0:02:38]} c5 {[%emt 0:01:55]} 7. d5 {[%emt 0:03:28]} e6 {[%emt 0:00:41]} 8. O-O {[%emt 0:00:26]} exd5 {[%emt 0:00:40]} 9. cxd5 {[%emt 0:00:03]} a6 {[%emt 0:04:42]} 10. a4 {[%emt 0:00:03]} Re8 {[%emt 0:00:31]} 11. Nd2 {[%emt 0:00:07]} Nbd7 {[%emt 0:00:36]} 12. Qc2 {[%emt 0:13:11]} Rb8 {[%emt 0:03:58]} 13. Rb1 {[%emt 0:02:08]} Qc7 {[%emt 0:10:08]} 14. b3 {[%emt 0:03:59]} b5 {[%emt 0:04:38]} 15. Bb2 {[%emt 0:00:11]} b4 {[%emt 0:14:33]} 16. Nd1 {[%emt 0:01:00]} a5 {[%emt 0:06:14]} (16... Rxe2 {seems wilder.} 17. Ne3 a5 18. Qd3 Rxe3 19. Qxe3 Nb6) 17. e4 {[%emt 0:28:23]} Ba6 {[%emt 0:03:06]} 18. Re1 {[%emt 0:00:18]} (18. Nc4 $11) 18... Nxd5 $17 {[%emt 0:05:16][%cal Bf6d5,Bd5e7,Be7c6][%mdl 32]} 19. Bxg7 {[%emt 0:03:21]} Kxg7 {[%emt 0:00:23]} 20. Bf1 {[%emt 0:00:05]} Bxf1 {[%emt 0:02:15]} 21. Kxf1 {[%emt 0:00:05]} Ne7 {[%emt 0:02:11]} 22. Ne3 {[%emt 0:02:34]} Kg8 {[%emt 0:09:33]} (22... Nc6 $17 23. Nd5 Qd8 24. Qb2+ f6) 23. Rbd1 {[%emt 0:02:09]} Nc6 {[%emt 0:03:11]} 24. Nf3 {[%emt 0:07:11] Prevents Nd4} Nb6 {[%emt 0:02:57]} 25. Ng4 {[%emt 0:00:46]} Qe7 {[%emt 0:07:21] Prevents Nf6+.} (25... Re7 $1 $15) 26. e5 $11 {[%emt 0:05:16]} dxe5 {[%emt 0:00:42]} 27. Nfxe5 {[%emt 0:00:03]} Nd4 {[%emt 0:02:01]} 28. Rxd4 {[%emt 0:02:41]} cxd4 $17 {[%emt 0:00:39]} 29. Qc6 {[%emt 0:01:15]} (29. Qd2 $17 {was necessary.} d3 (29... f6 30. Qxd4 Qf8 31. Nf3 $19) 30. Re3) 29... Rec8 $2 {[%emt 0:03:05]} (29... Kg7 $19 {White must now prevent ...Qe6.} 30. Nd3 Rec8 31. Rxe7 Rxc6) 30. Qf3 $11 {[%emt 0:01:03][%cal Oe5f7]} Qb7 {[%emt 0:01:32]} 31. Qf4 {[%emt 0:06:17][%cal Oe5f7] And now Nxf7! would win.} f5 {[%emt 0:05:10]} (31... Qh1+ 32. Ke2 Qb7 (32... d3+ $2 33. Kd1 $18) 33. Nxf7 $14) 32. Nf6+ {[%emt 0:00:04] A dynamic duo of knights.} Kg7 {[%emt 0:01:36]} 33. Kg1 $2 {[%emt 0:13:03][%mdl 8192]} Nd5 {[%emt 0:01:01]} (33... Kxf6 $2 34. Qxd4 Ke6 35. Ng4+ $18 (35. Nxg6+ Kf7 $16) (35. Nxg6+ Kf7 $16)) 34. Nh5+ {[%emt 0:00:48]} (34. Nxd5 {only move.} Qxd5 35. Nc6) 34... gxh5 {[%emt 0:01:45]} 35. Qg5+ {[%emt 0:00:00]} Kh8 {[%emt 0:00:38]} 36. Qh6 {[%emt 0:00:19]} Re8 {[%emt 0:01:21] ...Qg7 would now be deadly.} 37. Qxh5 {[%emt 0:00:23]} Ne3 {[%emt 0:01:15][%csl Ge3][%cal Rb7g2]} 38. Ng6+ {[%emt 0:00:35]} Kg7 {[%emt 0:00:17]} 39. Nf4 {[%emt 0:00:01] [#] Inhibits Qg2+.} Qf7 $1 {[%emt 0:00:51]} 40. Qg5+ {[%emt 0:00:01]} Kh8 {[%emt 0:00:22]} 41. fxe3 {[%emt 0:30:05]} Rxe3 {[%emt 0:02:05]} ({And not} 41... Qxb3 42. Qf6+ Kg8 43. Qg5+ Kf8 (43... Kf7 $2 44. Nh5 $18) 44. Qf6+ Qf7 45. Qh8+ Qg8 (45... Ke7 46. Qe5+ Kf8 47. Qh8+ Qg8 48. Qf6+ Qf7 49. Qh8+ $11) 46. Qf6+ Qf7 47. Qh8+ Ke7 48. Qxd4 $11) 42. Rd1 {[%emt 0:00:00]} Rbe8 {[%emt 0:08:02]} 43. Rxd4 {[%emt 0:00:00]} Rxb3 {[%emt 0:02:13] Threatens to win with ...Rb2.} 44. Rd8 {[%emt 0:00:00]} Rbe3 {[%emt 0:04:11]} 45. Nh5 {[%emt 0:00:00]} Re2 {[%emt 0:03:36]} 46. Kf1 {[%emt 0:00:00]} R2e7 {[%emt 0:02:01]} ({Inferior is} 46... Rxh2 47. Rxe8+ Qxe8 48. Qg7#) 47. Rd6 {[%emt 0:00:00]} Rg8 {[%emt 0:03:55]} (47... Qc4+ $142 48. Rd3 Qxd3+ 49. Kg2 Re2+ 50. Kh3 Rxh2+ 51. Kxh2 Qe2+ 52. Kg1 Qd1+ (52... Qe3+ $2 53. Qxe3 Rxe3 54. Kf2 $19) 53. Kg2 Re2+ 54. Kh3 Qh1#) 48. Qh4 $19 {[%emt 0:00:00]} Re4 $2 {[%emt 0:03:12]} (48... f4 {( -> ...Qc4+)} 49. Qf6+ Qxf6 50. Nxf6 Rf8) 49. Qf6+ {[%emt 0:00:00]} Qxf6 {[%emt 0:01:39]} 50. Nxf6 {[%emt 0:00:00][%cal Od6d7] White threatens Rd7! and mate.} Rge8 {[%emt 0:01:10]} 51. Nxe8 {[%emt 0:00:00] [#]} ({White should play} 51. Nxe4 $15 fxe4 (51... Rxe4 52. Rb6 $17) 52. Rb6) 51... Rxe8 $15 {[%emt 0:00:03][%mdl 4096] Endgame. KR-KR} (51... b3 $1 $17 {[%cal Rb3b2] Hoping for ...b2!} 52. Rd1 Rxe8) 52. Rb6 $1 {[%emt 0:00:00]} Kg7 {[%emt 0:01:38]} 53. Kf2 {[%emt 0:00:00] [#]} (53. Rb5 $11 {keeps the balance.}) 53... Kf7 {[%emt 0:01:02]} (53... Re5 $1 $17) 54. Rb5 $11 {[%emt 0:00:00][%csl LRa5,LRf5] The position is equal.} Kf6 {[%emt 0:00:30]} 55. Rxa5 {[%emt 0:00:00]} Rb8 {[%emt 0:00:20] aiming for ...b3.} 56. Rc5 {[%emt 0:00:00]} b3 {[%emt 0:00:19]} 57. Rc1 $1 {[%emt 0:00:00]} Ra8 {[%emt 0:01:57] Black had all chances to win.   Weighted Error Value: White=0.66/Black=0.53.  Loses game:     	White=1     	---        Missed win:     	---       	Black=1      Mistake:       	White=6     	Black=5      Inaccurate:     	White=3     	Black=3      OK:         	White=11    	Black=13     Best:        	White=3     	Black=3      Strong:       	White=2     	---} (57... b2 $5 58. Rb1 $8 h5 $11) 1/2-1/2

[Event "40th Cappelle Open 2024"]
[Site "Cappelle-la-Grande"]
[Date "2024.03.03"]
[Round "2.13"]
[White "Pucher, Sebastien"]
[Black "Wirig, Anthony"]
[Result "1/2-1/2"]
[ECO "A36"]
[WhiteElo "2198"]
[BlackElo "2462"]
[Annotator "TA"]
[PlyCount "61"]
[EventDate "2024.03.02"]
[EventType "swiss"]
[EventCountry "FRA"]
[SourceTitle "playchess.com"]
[Source "ChessBase"]
[SourceQuality "1"]
[TimeControl "40/5400+30:1800+30"]

{[%evp 10,61,14,-11,-18,-11,-5,-8,0,0,0,-4,-10,-12,-2,-53,-46,-52,-33,-65,-58,-64,-67,-70,-50,-103,-101,-112,-104,-132,-106,-85,-47,-42,-30,-35,-29,-29,-31,-73,-73,-62,0,0,0,0,8,8,8,0,22,0,26,26]} 1. c4 {[%emt 0:01:10]} c5 {[%emt 0:01:58]} 2. g3 {[%emt 0:00:57]} g6 {[%emt 0:00:15]} 3. Bg2 {[%emt 0:00:13]} Bg7 {[%emt 0:00:04]} 4. Nc3 {[%emt 0:00:31]} Nc6 {[%emt 0:00:23]} 5. d3 {[%emt 0:03:19]} e6 {[%emt 0:05:08]} 6. Bxc6 {[%emt 0:01:01]} dxc6 {[%emt 0:01:38]} 7. Nf3 {[%emt 0:01:56]} e5 {[%emt 0:05:45]} 8. h3 {[%emt 0:00:34]} h6 {[%emt 0:01:28] The position is equal.} 9. Bd2 {[%emt 0:07:16]} b6 {[%emt 0:06:05]} 10. Qc2 {[%emt 0:03:37]} Be6 {[%emt 0:12:36]} 11. O-O-O {[%emt 0:09:49]} Qd7 {[%emt 0:06:08]} 12. h4 {[%emt 0:15:58]} (12. Qa4 $11) 12... Ne7 {[%emt 0:20:50]} 13. Kb1 {[%emt 0:13:02]} O-O-O {[%emt 0:04:31]} 14. Bc1 {[%emt 0:03:41]} Nf5 {[%emt 0:03:05]} 15. e3 {[%emt 0:02:21]} Nd6 {[%emt 0:02:24] ...Bg4 is the strong threat.} 16. Nh2 {[%emt 0:10:45]} f5 {[%emt 0:06:56]} 17. f3 {[%emt 0:08:40] [#]} (17. f4 $15) 17... e4 $1 $17 {[%emt 0:08:06][%mdl 512]} 18. b3 {[%emt 0:10:54]} exd3 {[%emt 0:04:40]} 19. Rxd3 {[%emt 0:00:41]} Qe7 {[%emt 0:04:00]} 20. Rhd1 {[%emt 0:02:15]} Nf7 {[%emt 0:02:36]} (20... b5 {keeps more tension.} 21. cxb5 c4 22. R3d2 Nxb5 23. Nxb5 cxb5 24. Bb2 Rxd2 25. Rxd2 Kb7) 21. Rxd8+ {[%emt 0:01:13]} Rxd8 {[%emt 0:00:37]} 22. Rxd8+ {[%emt 0:00:04]} Qxd8 {[%emt 0:00:25]} 23. Bb2 {[%emt 0:00:55]} g5 {[%emt 0:01:06]} 24. hxg5 {[%emt 0:00:38]} hxg5 {[%emt 0:00:01]} 25. f4 {[%emt 0:00:57]} Bxc3 {[%emt 0:01:31]} (25... g4 $15) 26. Bxc3 $11 {[%emt 0:00:07]} g4 {[%emt 0:00:10]} 27. Nf1 {[%emt 0:00:54]} Qd7 {[%emt 0:00:44]} 28. Nd2 {[%emt 0:00:29]} Kb7 {[%emt 0:00:10]} 29. Kb2 {[%emt 0:00:26]} b5 {[%emt 0:00:58]} 30. a3 {[%emt 0:00:29]} Qd6 {[%emt 0:00:37]} 31. Bg7 {[%emt 0:00:36] Weighted Error Value: White=0.12 (very precise) /Black=0.13 (very precise) .  Mistake:       	White=2     	Black=1      Inaccurate:     	White=2     	Black=2      OK:         	White=11    	Black=4      Best:        	---       	Black=1} 1/2-1/2